{"text_format":"1","workbook":"xlsx","n_sheets":2,"sheets":["Pasiūlymas","Subtiekėjai ir priedai"],"not_rendered":{"charts":0,"images":0,"macros":1,"external_links":0,"defined_names":0,"comments":0,"pivot_tables":0},"unopened":[],"bounds":{"document_bytes":16777216,"sheet_cells":100000,"rows_first":2000,"rows_last":500,"rows_between":2000,"halvings":0,"cell_chars":16384,"cell_head_chars":4096},"cells_cut":0,"cells_raw":0,"read":"whole","date_system":"1900"}

{"sheet":"Pasiūlymas","index":0,"n_rows":121,"n_cols":8,"rows_kept":121,"cut":false,"hidden":false,"merged":[[27,0,27,5],[28,0,28,5],[24,0,24,5],[25,0,25,5],[26,0,26,5],[18,0,18,1],[18,2,18,5],[23,0,23,5],[19,0,19,1],[20,0,20,1],[19,2,19,5],[20,2,20,5],[22,0,22,5],[29,0,29,2],[29,3,29,5],[11,0,11,1],[11,2,11,5],[12,0,12,1],[12,2,12,5],[13,0,13,1],[13,2,13,5],[14,0,14,1],[14,2,14,5],[15,0,15,1],[15,2,15,5],[16,0,16,1],[16,2,16,5],[17,0,17,1],[17,2,17,5]]}
[]
["PIRKIMO SĄLYGŲ PRIEDAS \"PASIŪLYMŲ FORMA\""]
[]
["CHIRURGINIAI TINKLELIAI, SIŪLAI IR SIUVIMO PRIETAISAI"]
[]
["Kam:","VšĮ LSMU Kauno ligoninė"]
[]
["Data:","2022 11 30"]
["Nr.:"]
["Vieta:","Vilnius"]
[]
["Tiekėjo pavadinimas / Ūkio subjektų grupės nariai:",null,"Baros LT"]
["Tiekėjo kodas (-ai):",null,305266958]
["Tiekėjo adresas (-ai):",null,"Vilkpėdės 22, Vilnius LT-03151"]
["Tiekėjo PVM mokėtojo kodas(-ai):",null,"LT100012693017"]
["Tiekėjo / Ūkio subjektų grupės atsakingo partnerio sąskaitos numeris, banko pavadinimas ir banko kodas (-ai):",null,"LT567044060008311796, SEB Bankas"]
["Asmens atsakingo už pasiūlymą vardas, pavardė:",null,"Vytautas Petrašiūnas"]
["Asmens atsakingo už pasiūlymą telefono numeris, el. pašto adresas:",null,"37067139616, info@baros.lt"]
["Tiekėjo / Ūkio subjektų grupės, laimėjimo atveju, pasirašančio sutartį asmens vardas, pavardė, pareigos:",null,"Vytautas Petrašiūnas, direktorius"]
["Tiekėjo / Ūkio subjektų grupės, laimėjimo atveju, už sutarties vykdymą atsakingo asmens vardas, pavardė, telefono numeris, elektroninio pašto adresas:",null,"Vytautas Petrašiūnas, 37067139616, info@baros.lt"]
["(1) Tiekėjo / Ūkio subjektų grupės narių, (2) ūkio subjektų, kurių pajėgumais remiamasi, ir (3) jei pašalinimo pagrindai taikomi visiems subtiekėjams - subtiekėjų, kolegialaus priežiūros organo (Stebėtojų tarybos) ir (ar) kolegialaus valdymo organo (Valdybos) narių sąrašas (jei sudaryta) ir (ar) asmuo, kuriam suteikti VPĮ 46 str. 2 d. 2 p. numatyti įgaliojimai",null,"Valdyba nesudaryta, numatyti įgaliojimai suteikti direktoriui Vytautui Petrašiūnui",null,null,null,{"$f":"IF((SUMPRODUCT(--(C21=\"\"))>0), \"Privaloma užpildyti, kai taikomi pašalinimo pagrindai\", \"\")","v":""}]
[]
["Tiekėjo patvirtinimai:"]
["1. Šiuo pasiūlymu pažymime, kad sutinkame su visomi pirkimo sąlygomis, nustatytomis:"]
["1.1. viešojo pirkimo dokumentuose"]
["1.2. kituose pirkimo dokumentuose (jų paaiškinimuose, papildymuose)."]
["2. Patvirtiname, kad informacija ir duomenys, pateikti pasiūlyme, yra teisingi ir apima viską, ko reikia tinkamam sutarties įvykdymui"]
["3. Patvirtiname, kad jei pasiūlyme nenurodyti kolegialaus priežiūros/valdymo organų nariai, šie organai juridiniuose asmenyse nėra sudaryti (taikoma, kai pirkimo dokumentuose nustatyti pašalinimo pagrindai)."]
["4. Pasiūlymas galioja iki termino, nustatyto pirkimo dokumentuose."]
["5. Tais atvejais, kai pagal galiojančius teisės aktus tiekėjui nereikia mokėti PVM, jis nurodo priežastis, dėl kurių PVM nemoka:"]
[]
[]
[]
["7. DALIS","TINKLELIAI IŠVARŽŲ PLASTIKAI"]
[]
["Tiekėjo pasiūlymas:"]
["Nr.","Pavadinimas","Kiekis","Mato vienetas","Įkainis be PVM, Eur","Suma be PVM, Eur","Siūlomos prekės, pavadinimas, gamintojas, kodas","Tiekėjo siūlomi parametrai ir parametrą pagrindžiantys dokumentai"]
["7.","Tinkleliai išvaržų plastikai"]
["7.1.","Tinkleliai išvaržų plastikai ",35,"vnt",56,{"$f":"IF(ISBLANK(E39),\"\", PRODUCT(C39,E39))","v":1960},"BioMesh P1, Cousin surgery, \nPrancūzija, FBIOP13DSR, FBIOP13D SL"]
["7.1.1.","Dydis 15 cm x 10  cm ( ± 1 cm)",null,null,null,null,null,"Dydis 14 cm x 10,5  cm \n(Katalogas G, 2psl.)"]
["7.1.2.","Sterilus tinklelis",null,null,null,null,null,"Sterilus tinklelis (Katalogas H, 1psl.)"]
["7.1.3.","Skirtas išvaržų operacijoms",null,null,null,null,null,"Skirtas išvaržų operacijoms \n(Katalogas G, 2psl.)"]
["7.1.4.","Pagamintas  iš monofilamentinio  polivinilidenflorido arba monofilamentinio polipropileno ",null,null,null,null,null,"Pagamintas  iš monofilamentinio \npolipropileno (Katalogas H, 2 psl.)"]
["7.1.5.","Tinklelis išgaubtas, Išlaiko formą",null,null,null,null,null,"Tinklelis išgaubtas, Išlaiko formą \n(Katalogas G 2psl.)"]
["7.1.6.","Su žaliomis orientavimosi linijomis arba turintis kitus markerius",null,null,null,null,null,"Turintis mėlyną markerį \n(Katalogas G, 1-2 psl.)"]
["7.1.7.","Skirtingų pusių (dešinė arba kairė) arba tinkantis abiems anatominėms pusėms",null,null,null,null,null,"Skirtingų pusių (dešinė arba kairė), \n(Katalogas G, 2psl.)"]
["7.1.8.","Tinkleliai privalo turėti sterilumo kontrolės sistemą t. y.kontrolinius lipdukus su pakuotės sterilumo ir gamybos duomenimis",null,null,null,null,null,"Visi gamintojo Cousin surgery Biomesh \nP1 tinkleliai turi sterilumo kontrolės sistemą t. y.kontrolinius lipdukus su pakuotės sterilumo ir gamybos duomenimis (Katalogas I, 1psl.)"]
[null,null,null,null,"Suma be PVM",{"$f":"IF((COUNT(C39:C47)<>COUNT(F39:F47)),\"\", SUM(F39:F47))","v":1960},{"$f":"IF((COUNT(C39:C47)<>COUNT(F39:F47)),\"Neužpildytos visų objektų kainos\", \"\")","v":""}]
[null,null,null,null,"PVM suma",{"$f":"F48*0.05","v":98}]
[null,null,null,null,"Suma su PVM",{"$f":"IF(ISBLANK(F49), \"\", SUM(F48:F49))","v":2058}]
[]
[]
["32. DALIS","TINKLELIS IŠVARŽOS PLASTIKAI "]
[]
["Tiekėjo pasiūlymas:"]
["Nr.","Pavadinimas","Kiekis","Mato vienetas","Įkainis be PVM, Eur","Suma be PVM, Eur","Siūlomos prekės, pavadinimas, gamintojas, kodas","Tiekėjo siūlomi parametrai ir parametrą pagrindžiantys dokumentai"]
["32.","Tinklelis išvaržos plastikai "]
["32.1.","Tinklelis išvaržos plastikai ",200,"vnt.",56,{"$f":"IF(ISBLANK(E58),\"\", PRODUCT(C58,E58))","v":11200},"3D Anatomical mesh, Cousin Surgery, \nPrancūzija, FBIOP13DSR, FBIOP13DSL"]
["32.1.1.","Išgaubtas 10 x 15cm (± 1cm)",null,null,null,null,null,"Išgaubtas 10,5 x 14cm (Katalogas G, 2 psl.)"]
["32.1.2.","Išgaubtą formą išlaikantis 3D tinklelis skirtas laparoskopinėms kirkšnies išvaržos operacijoms",null,null,null,null,null,"Išgaubtą formą išlaikantis 3D tinklelis, \nskirtas laparoskopinėms kirkšnies išvaržos operacijoms (Katalogas G, 1-2 psl)"]
["32.1.3.","Pagamintas iš monofilamentinio polivinildenfluorido arba monofilamentinio polipropileno",null,null,null,null,null,"Pagamintas iš monofilamentinio\n polipropileno (Katalogas G, 2 psl)"]
["32.1.4.","Turi spalvines orientavimo linijas arba kitus markerius, tinka abiems anatominėms pusėms arba skirtingų pusių (dešinė, kairė)",null,null,null,null,null,"Turi mėlynos spalvos markerius, \nskirtingų pusių (dešinė, kairė) (Katalogas G, 2 psl)"]
[null,null,null,null,"Suma be PVM",{"$f":"IF((COUNT(C58:C62)<>COUNT(F58:F62)),\"\", SUM(F58:F62))","v":11200},{"$f":"IF((COUNT(C58:C62)<>COUNT(F58:F62)),\"Neužpildytos visų objektų kainos\", \"\")","v":""}]
[null,null,null,null,"PVM suma",{"$f":"F63*0.05","v":560}]
[null,null,null,null,"Suma su PVM",{"$f":"IF(ISBLANK(F64), \"\", SUM(F63:F64))","v":11760}]
[]
[]
[]
["39. DALIS","LIGAVIMO IR SIUVIMO PRIEMONĖS BEI INSTRUMENTAI LAPARASKOPINEI IR ATVIRAI CHIRURGIJAI"]
[]
["Tiekėjo pasiūlymas:"]
["Nr.","Pavadinimas","Kiekis","Mato vienetas","Įkainis be PVM, Eur","Suma be PVM, Eur","Siūlomos prekės, pavadinimas, gamintojas, kodas","Tiekėjo siūlomi parametrai ir parametrą pagrindžiantys dokumentai"]
["39.","Ligavimo ir siuvimo priemonės bei instrumentai laparaskopinei ir atvirai chirurgijai"]
["39.1.","Laparaskopinio siuvimo aparato rankena",8,"vnt",155,{"$f":"IF(ISBLANK(E74),\"\", PRODUCT(C74,E74))","v":1240},"EasyEndo, Ezisurg, \nKinija, U12M"]
["39.1.1.","Laparaskopinio siuvimo aparato rankena",null,null,null,null,null,"Laparaskopinio siuvimo aparato rankena, \n(Katalogas A, 1 psl)"]
["39.1.2.","Vienkartinė",null,null,null,null,null,"Vienkartinė, (Katalogas A, 1 psl., \nKatalogas B, 1 psl)"]
["39.1.3.","Darbinis ilgis 16 cm (±0,5 cm)",null,null,null,null,null,"Darbinis ilgis 16 cm, (Katalogas A, 1 psl)"]
["39.1.4.","Rankenos pagalba galima atlikti ne mažiau 25 kasečių šūvius",null,null,null,null,null,"Rankenos pagalba galima atlikti \n25 kasečių šūvius, (Katalogas B, 10 psl)"]
["39.1.5.","Rankeną galima uždaryti ir atidaryti pakartotinai neiššovus kasetės",null,null,null,null,null,"Rankeną galima uždaryti ir atidaryti \npakartotinai neiššovus kasetės, (Katalogas B, 9 psl)"]
["39.1.6.","Įdiegtas apsaugos mechanizmas prieš atsitiktinį iššovimą",null,null,null,null,null,"Įdiegtas apsaugos mechanizmas prieš \natsitiktinį iššovimą, (Katalogas B, 9 psl)"]
["39.1.7.","Rankenos atžvilgiu darbinė instrumento dalis rotuojama 360 laipsnių",null,null,null,null,null,"Rankenos atžvilgiu darbinė instrumento \ndalis rotuojama 360 laipsnių, (Katalogas B, 9 psl)"]
["39.1.8.","Artikuliuojama ne mažiau 45 laipsnių į abi puses",null,null,null,null,null,"Artikuliuojama 60 laipsnių į\n abi puses, (Katalogas A, 2 psl)"]
["39.1.9.","Galimybė dirbti su ne mažiau  kaip 20 skirtingų tipų kasečių (tiesių ir besilankstančių)",null,null,null,null,null,"Galimybė dirbti su ne mažiau  kaip \n20 skirtingų tipų kasečių (tiesių ir besilankstančių), (Katalogas A, 1 psl)"]
[null,null,null,null,"Suma be PVM",{"$f":"IF((COUNT(C74:C83)<>COUNT(F74:F83)),\"\", SUM(F74:F83))","v":1240},{"$f":"IF((COUNT(C74:C83)<>COUNT(F74:F83)),\"Neužpildytos visų objektų kainos\", \"\")","v":""}]
[null,null,null,null,"PVM suma",{"$f":"F84*0.05","v":62}]
[null,null,null,null,"Suma su PVM",{"$f":"IF(ISBLANK(F85), \"\", SUM(F84:F85))","v":1302}]
[]
[]
[]
["40. DALIS","KASETĖS LAPARASKOPINIO SIUVIMO APARATUI"]
[]
["Tiekėjo pasiūlymas:"]
["Nr.","Pavadinimas","Kiekis","Mato vienetas","Įkainis be PVM, Eur","Suma be PVM, Eur","Siūlomos prekės, pavadinimas, gamintojas, kodas","Tiekėjo siūlomi parametrai ir parametrą pagrindžiantys dokumentai"]
["40.","Kasetės laparaskopinio siuvimo aparatui"]
["40.1.","Kasetės laparaskopinio siuvimo aparatui",12,"vnt",110,{"$f":"IF(ISBLANK(E95),\"\", PRODUCT(C95,E95))","v":1320},"EasyEndo, Ezisurg, \nKinija, L45B, L60B, R45B, R60B"]
["40.1.1.","Siūlės ilgis 45 mm (±0,5 mm) arba 60 mm (±0,5 mm)",null,null,null,null,null,"Siūlės ilgis 45 mm ir 60 mm, \n(Katalogas C, 2 psl)"]
["40.1.2.","6 kabučių eilės",null,null,null,null,null,"6 kabučių eilės, Katalogas C, 2 psl"]
["40.1.3.","Kabutės pagamintos iš titano",null,null,null,null,null,"Kabutės pagamintos iš titano, \n(Katalogas B, 10 psl)"]
["40.1.4.","Uždarytų kabučių  aukštis 1,5 mm  (±0,1 mm)",null,null,null,null,null,"Uždarytų kabučių  aukštis 1,5 mm,\n (Katalogas C, 2 psl)"]
["40.1.5.","Pjovimo peilis yra įmontuotas kasetėje",null,null,null,null,null,"Pjovimo peilis yra įmontuotas kasetėje,\n (Katalogas B 2 ir 7 psl)"]
["40.2.","Kasetės laparaskopinio siuvimo aparatui",12,"vnt",110,{"$f":"IF(ISBLANK(E101),\"\", PRODUCT(C101,E101))","v":1320},"EasyEndo, Ezisurg, Kinija,\n L45W, L60W, R45W, R60W"]
["40.2.1.","Siūlės ilgis 45 mm (±0,5 mm) ir 60 mm (±0,5 mm)",null,null,null,null,null,"Siūlės ilgis 45 mm ir 60 mm, \n(Katalogas C, 2 psl)"]
["40.2.2.","Ne daugiau 6 kabučių eilės.",null,null,null,null,null,"6 kabučių eilės, Katalogas C, 2 psl"]
["40.2.3.","Kabutės pagamintos iš titano",null,null,null,null,null,"Kabutės pagamintos iš titano, \n(Katalogas B, 10 psl)"]
["40.2.4.","Uždarytų kabučių  aukštis 1 mm  (±0,1 mm)",null,null,null,null,null,"Uždarytų kabučių  aukštis 1 mm,\n (Katalogas C, 2 psl)"]
["40.2.5.","Pjovimo peilis yra įmontuotas kasetėje",null,null,null,null,null,"Pjovimo peilis yra įmontuotas \nkasetėje, (Katalogas B 2 ir 7 psl)"]
["40.3.","Kasetės laparaskopinio siuvimo aparatui",12,"vnt",110,{"$f":"IF(ISBLANK(E107),\"\", PRODUCT(C107,E107))","v":1320},"EasyEndo, Ezisurg, Kinija,\n L45G, L60G, R45G, R60G"]
["40.3.1.","Siūlės ilgis 45 mm (±0,5 mm) ir 60 mm (±0,5 mm)",null,null,null,null,null,"Siūlės ilgis 45 mm ir 60 mm, \n(Katalogas C, 2 psl)"]
["40.3.2.","Ne mažiau 6 kabučių eilės",null,null,null,null,null,"6 kabučių eilės, (Katalogas C, 2 psl)"]
["40.3.3.","Kabutės pagamintos iš titano",null,null,null,null,null,"Kabutės pagamintos iš titano, \n)Katalogas B, 10 psl)"]
["40.3.4.","Uždarytų kabučių  aukštis 2 mm  (±1 mm)",null,null,null,null,null,"Uždarytų kabučių  aukštis 2 mm, \n(Katalogas C, 2 psl)"]
["40.3.5.","Pjovimo peilis yra įmontuotas kasetėje",null,null,null,null,null,"Pjovimo peilis yra įmontuotas kasetėje, \n(Katalogas B 2 ir 7 psl)"]
["40.4.","Kasetės laparaskopinio siuvimo aparatui",12,"vnt",110,{"$f":"IF(ISBLANK(E113),\"\", PRODUCT(C113,E113))","v":1320},"EasyEndo, Ezisurg, Kinija, \nR45B, R45C, R45G, R60B, R60C, R60G, R60T"]
["40.4.1.","Siūlės ilgis 45 mm  (±0,5 mm) ir 60 mm (±0,5 mm)",null,null,null,null,null,"Siūlės ilgis 45 mm ir 60 mm, \n(Katalogas C, 2 psl)"]
["40.4.2.","Kabutės išdėstytos trim eilėm kiekvienoje pjovimo ribos pusėje ir skirtingų aukščių",null,null,null,null,null,"Kabutės išdėstytos trim eilėm kiekvienoje pjovimo \nribos pusėje (Katalogas A, 2 psl.) ir skirtingų aukščių (Katalogas C, 2 psl.)"]
["40.4.3.","Atidarytų kabučių aukštis 3 mm (±0,5 mm),  3,5 mm (±0,5 mm),  4 mm  (±0,5 mm)",null,null,null,null,null,"Atidarytų kabučių aukštis: \n3.5 mm, 3.8 mm, 4.1 mm, 4.4 mm, (Katalogas C, 2 psl)"]
["40.4.4.","Ne mažiau 45 laipsniai",null,null,null,null,null,"60 laipsnių, (Katalogas A, 2 psl)"]
["40.4.5.","Priekalas fiksuotas arba nuimamas",null,null,null,null,null,"Priekalas fiksuotas arba nuimamas, \n(Katalogas B, 1 psl)"]
[null,null,null,null,"Suma be PVM",{"$f":"IF((COUNT(C95:C118)<>COUNT(F95:F118)),\"\", SUM(F95:F118))","v":5280},{"$f":"IF((COUNT(C95:C118)<>COUNT(F95:F118)),\"Neužpildytos visų objektų kainos\", \"\")","v":""}]
[null,null,null,null,"PVM suma",{"$f":"F119*0.05","v":264}]
[null,null,null,null,"Suma su PVM",{"$f":"IF(ISBLANK(F120), \"\", SUM(F119:F120))","v":5544}]

{"sheet":"Subtiekėjai ir priedai","index":1,"n_rows":82,"n_cols":11,"rows_kept":82,"cut":false,"hidden":false,"merged":[[13,0,13,1],[12,0,12,1],[11,0,11,1],[13,2,13,4],[12,2,12,4],[11,2,11,4],[1,0,2,10],[15,0,15,9],[7,5,7,7],[6,5,6,7],[7,8,7,9],[6,8,6,9],[7,0,7,1],[6,0,6,1],[7,2,7,4],[6,2,6,4],[5,2,5,4],[5,8,5,9],[4,8,4,9],[8,0,8,10],[10,8,10,9],[10,5,10,7],[4,5,4,7],[4,2,4,4],[17,0,17,9],[19,7,19,9],[19,1,19,6],[4,0,4,1],[5,5,5,7],[5,0,5,1],[10,2,10,4],[10,0,10,1],[13,5,13,7],[12,5,12,7],[11,5,11,7],[13,8,13,9],[12,8,12,9],[11,8,11,9],[27,7,27,9],[22,7,22,9],[21,7,21,9],[20,7,20,9],[26,7,26,9],[25,7,25,9],[24,7,24,9],[23,7,23,9],[29,0,29,9],[34,4,34,9],[32,4,32,9],[34,0,34,3],[32,0,32,3],[23,1,23,6],[22,1,22,6],[21,1,21,6],[20,1,20,6],[27,1,27,6],[26,1,26,6],[25,1,25,6],[24,1,24,6]]}
[]
["Ūkio subjektai (įskaitant kvazisubtiekėjus - fiziniai asmenys, kuriuos ketinama įdarbinti pirkimo laimėjimo atveju), kurių pajėgumais tiekėjas remiasi, kad atitiktų keliamus kvalifikacijos reikalavimus:"]
[]
[]
["Pavadinimas*",null,"Kodas, adresas",null,null,"Perduodami įsipareigojimai",null,null,"Perduodamų įsipareigojimų dalis nuo visos pirkimo sutarties (Eur arba %)",null,"Kval. Reikalavimo Nr."]
[]
[]
[]
["Subtiekėjams / subteikėjams / subrangovams numatomos perduoti veiklos (privaloma nurodyti) ir šių ūkio subjektų pavadinimai (jei žinomi):"]
[]
["Pavadinimas",null,"Kodas, adresas",null,null,"Perduodama veikla*",null,null,"Perduodamos veiklos dalis nuo visos pirkimo sutarties (Eur arba %)"]
[]
[]
[]
[]
[]
[]
["Kartu su pasiūlymu pateikiami šie dokumentai:"]
[]
["Nr.","Dokumento  pavadinimas",null,null,null,null,null,"Dokumentas yra konfidencialus? Taip/Ne"]
[1,"Jungtinės veiklos kopija (jei taikoma)",null,null,null,null,null,"Netaikoma"]
[2,"Europos bendrasis viešųjų pirkimų dokumentas",null,null,null,null,null,"Taip"]
[3,"Subtiekimo sutartis, ketinimų protokolas, preliminarios sutartys ar kiti dokumentai, patvirtinantys, kad laimėjus pirkimą tiekėjui bus prieinami kitų ūkio subjektų ištekliai (jei pasitelkiami kvalifikacijos atitikimui)",null,null,null,null,null,"Netaikoma"]
[4,"Pasiūlymo atitikimą pirkimo sąlygų techninei specifikacijai pagrindžiantys dokumentai",null,null,null,null,null,"Ne "]
[5,"Gamintojo Cousin surgery CE sertifikatas",null,null,null,null,null,"Taip"]
[6,"Gamintojo Ezisurg CE sertifikatas",null,null,null,null,null,"Taip"]
[7,"Tiekėjo deklaracija",null,null,null,null,null,"Ne"]
[]
[]
["Pasiūlyme nurodyta Prekės kaina, išskyrus jos sudedamąsias dalis, subtiekėjai, taip pat kita informacija, kuri teisės aktų nustatyta tvarka turi būti skelbiama arba kitokiu būdu viešai prieinama visuomenei, nėra laikoma konfidencialia informacija. Konfidencialią informaciją sudaro, visų pirma, komercinė (gamybinė) paslaptis ir konfidencialieji pasiūlymų aspektai. Informacija, kurią viešai skelbti įpareigoja Lietuvos Respublikos įstatymai, negali būti tiekėjo nurodoma kaip konfidenciali, todėl, tiekėjui nurodžius tokią informaciją kaip konfidencialią, perkančioji organizacija turi teisę ją skelbti. Jei tiekėjas nenurodo konfidencialios informacijos, laikoma, kad konfidencialios informacijos tiekėjo pasiūlyme nėra. Vadovaujantis Informacijos viešinimo Centrinėje viešųjų pirkimų informacinėje sistemoje tvarkos aprašu, patvirtintu Viešųjų pirkimų tarnybos direktoriaus 2017 m. birželio 19 d. įsakymu Nr. 1S-91 „Dėl Informacijos viešinimo Centrinėje viešųjų pirkimų informacinėje sistemoje tvarkos aprašo patvirtinimo“, perkančioji organizacija laimėjusio dalyvio pasiūlymą, išskyrus informaciją, kurią tiekėjas nurodė kaip konfidencialią, paskelbs CVP IS."]
[]
[]
["Tiekėjo arba jo įgalioto asmens pareigų pavadinimas:",null,null,null,"Direktorius"]
[]
["Pasirašančio asmens vardas ir pavardė:",null,null,null,"Vytautas Petrašiūnas"]
[]
[]
[]
[]
[]
[]
[]
[]
[]
[]
[]
[]
[]
[]
[]
[]
[]
[]
[]
[]
[]
[]
[]
[]
[]
[]
[]
[]
[]
[]
[]
[]
[]
[]
[]
[]
[]
[]
[]
[]
[]
[]
[]
[]
[]
[]
["6890-1 2022-10-26 09:24:43"]